bitfinex-derivatives/quotes_BTCF0:USTF0_20260113
["timestamp","ask_amount","ask_price","bid_price","bid_amount"]
[1768297348509,0.14711098,92140.0,92115.0,0.09776]
[1768297349003,0.09776,92143.0,92116.0,0.010866]
[1768297349206,0.14711098,92140.0,92116.0,0.010866]
[1768297349501,0.14711098,92140.0,92118.0,0.010866]
[1768297349696,0.14711098,92140.0,92119.0,0.09261082]
[1768297350099,0.09776,92143.0,92119.0,0.09261082]
[1768297350299,0.14711098,92140.0,92119.0,0.09261082]
[1768297351308,0.09776,92143.0,92121.0,0.09261082]
[1768297351496,0.09776,92143.0,92123.0,0.09261082]
[1768297351898,0.010862,92156.0,92128.0,0.18753187]
[1768297352102,0.09776,92155.0,92131.0,0.09492105]
[1768297352410,0.09776,92155.0,92135.0,0.09261082]
[1768297352613,0.010862,92154.0,92135.0,0.09261082]
[1768297352998,0.14711098,92150.0,92126.0,0.09261082]
[1768297353197,0.03455159,92125.0,92091.0,0.08973729]
[1768297353495,0.03455159,92125.0,92054.0,0.010873]
[1768297353496,0.14711098,92110.0,92094.0,0.010869]
[1768297353696,0.010867,92111.0,92093.0,0.09776]
[1768297354106,0.010867,92111.0,92086.0,0.01087]
[1768297354309,0.010866,92115.0,92089.0,0.108629]
[1768297354509,0.14711098,92110.0,92089.0,0.108629]
[1768297354709,9.566e-05,92109.0,92089.0,0.108629]
[1768297354905,9.566e-05,92109.0,92092.0,0.010869]
[1768297355211,0.03195994,92125.0,92089.0,0.09776]
[1768297355212,0.010865,92131.0,92107.0,0.19343407]
[1768297355398,0.010864,92135.0,92111.0,0.09591939]
[1768297356002,0.14169413,92130.0,92111.0,0.09591939]
[1768297356212,4.191e-05,92129.0,92112.0,0.0978]
[1768297356408,4.191e-05,92129.0,92112.0,0.108667]
[1768297356608,4.191e-05,92129.0,92113.0,0.09591939]
[1768297357211,0.14711098,92123.0,92112.0,0.0978]
[1768297357404,4.191e-05,92122.0,92112.0,0.0978]
[1768297358403,4.191e-05,92122.0,92112.0,0.19371939]
[1768297358914,4.191e-05,92122.0,92075.0,0.010871]
[1768297358915,0.8542,92121.0,92075.0,0.010871]
[1768297359113,0.010867,92109.0,92079.0,0.10679039]
[1768297359306,0.14711098,92110.0,92080.0,0.09591939]
[1768297359307,0.0978,92108.0,92080.0,0.09591939]
[1768297359507,0.010868,92102.0,92080.0,0.09591939]
[1768297359701,4.191e-05,92101.0,92080.0,0.09591939]
[1768297359903,4.191e-05,92101.0,92082.0,0.09591939]
[1768297360102,4.191e-05,92101.0,92084.0,0.09591939]
[1768297360918,4.191e-05,92101.0,92086.0,0.09591939]
[1768297361300,4.191e-05,92101.0,92087.0,0.01087]
[1768297361505,0.010867,92111.0,92088.0,0.09591939]
[1768297361709,0.010866,92115.0,92089.0,0.09591939]
[1768297362017,0.010866,92115.0,92079.0,0.0978]
[1768297362018,0.14711098,92100.0,92079.0,0.09591939]
[1768297362315,0.010868,92103.0,92079.0,0.09591939]
[1768297363017,0.010867,92112.0,92084.0,0.09591939]
[1768297363212,0.010867,92109.0,92085.0,0.09591939]
[1768297363808,0.010867,92106.0,92085.0,0.09591939]
[1768297364008,0.15797798,92110.0,92085.0,0.09591939]
[1768297365219,0.29422196,92100.0,92056.0,0.09591939]
[1768297365513,0.14711098,92090.0,92059.0,0.09591939]
[1768297365708,0.010871,92074.0,92059.0,0.09591939]
[1768297366315,0.010871,92078.0,92059.0,0.09591939]
[1768297366520,0.14711098,92080.0,92059.0,0.09591939]
[1768297366814,0.01087,92088.0,92061.0,0.09591939]
[1768297367119,0.01087,92085.0,92061.0,0.09591939]
[1768297367315,0.14711098,92090.0,92065.0,0.09591939]
[1768297367519,0.010869,92093.0,92065.0,0.09591939]
[1768297367715,0.010868,92097.0,92068.0,0.09591939]
[1768297367915,0.010869,92094.0,92069.0,0.09591939]
[1768297368110,0.39136,92112.0,92037.0,7.938e-05]
[1768297368111,0.09784,92108.0,92037.0,7.938e-05]
[1768297368412,0.09784,92108.0,91998.0,0.05679437]
[1768297368413,0.010872,92066.0,92038.0,0.010875]
[1768297368613,0.14711098,92070.0,92022.0,0.010877]
[1768297368614,0.010872,92070.0,92041.0,0.09751468]
[1768297368816,0.14711098,92080.0,92041.0,0.09751468]
[1768297369206,0.09784,92083.0,92041.0,0.09751468]
[1768297369207,0.14711098,92070.0,92042.0,0.010875]
[1768297369411,0.14711098,92070.0,92048.0,0.010874]
[1768297369608,0.010871,92073.0,92048.0,0.010874]
[1768297370022,0.00848663,92073.0,92048.0,0.010874]
[1768297370222,0.09359303,92079.0,92046.0,0.09591939]
[1768297370618,0.14711098,92070.0,92046.0,0.09591939]
[1768297370820,0.14711098,92070.0,92047.0,0.09784]
[1768297371111,0.010871,92078.0,92048.0,0.09591939]
[1768297371317,0.010871,92078.0,92053.0,0.09591939]
[1768297371513,0.09548462,92088.0,92059.0,0.09591939]
[1768297371825,0.01087,92083.0,92060.0,0.10679239]
[1768297372134,0.010873,92058.0,92032.0,0.010876]
[1768297372423,0.010873,92059.0,92037.0,0.09591939]
[1768297372615,0.14711098,92060.0,92039.0,0.09591939]
[1768297373016,0.010872,92068.0,92044.0,0.09591939]
[1768297374127,0.14711098,92080.0,92049.0,0.10679339]
[1768297374317,0.14711098,92070.0,92049.0,0.09591939]
[1768297374520,0.010872,92069.0,92049.0,0.09591939]
[1768297374825,0.14711098,92070.0,92050.0,0.09784]
[1768297375018,0.14711098,92070.0,92051.0,0.09591939]
[1768297375324,0.010874,92053.0,92028.0,0.09784]
[1768297375516,0.14711098,92050.0,92030.0,0.09591939]
[1768297375713,0.010874,92055.0,92030.0,0.09591939]
[1768297375918,0.010874,92052.0,92030.0,0.09591939]
[1768297376117,0.14711098,92050.0,92030.0,0.09591939]
[1768297376522,0.010874,92049.0,92031.0,0.09784]
[1768297376728,0.14711098,92050.0,92031.0,0.09784]
[1768297376927,0.010873,92058.0,92031.0,0.09784]
[1768297377227,0.010872,92063.0,92038.0,0.09591939]
[1768297377413,0.010872,92067.0,92040.0,0.09591939]
[1768297377619,0.010872,92067.0,92042.0,0.09591939]
[1768297377824,0.010872,92067.0,92047.0,0.09591939]
[1768297378025,0.010872,92067.0,92048.0,0.09788]
[1768297378227,0.08538187,92081.0,92049.0,0.09591939]
[1768297378526,0.010872,92071.0,92049.0,0.09591939]
[1768297378924,0.010872,92071.0,92050.0,0.09591939]
[1768297379118,0.010871,92077.0,92054.0,0.09591939]
[1768297379319,0.01087,92082.0,92057.0,0.09591939]
[1768297379522,0.01087,92082.0,92066.0,0.02164792]
[1768297379726,0.01087,92086.0,92068.0,0.09591939]
[1768297379930,0.01087,92086.0,92057.0,0.09751468]
[1768297379931,0.08576824,92090.0,92012.0,0.09751468]
[1768297380123,0.010873,92060.0,92036.0,0.010876]
[1768297380428,0.010873,92060.0,92030.0,0.09751468]
[1768297380429,0.010873,92057.0,92037.0,0.09788]
[1768297380728,0.010873,92061.0,92037.0,0.09788]
[1768297380919,0.010873,92062.0,92037.0,0.09788]
[1768297381119,0.010873,92062.0,92037.0,0.108756]
[1768297381322,0.010873,92062.0,92038.0,0.09788]
[1768297382030,0.010873,92062.0,92038.0,0.19379939]
[1768297382330,0.010873,92062.0,92039.0,0.09788]
[1768297382533,0.010873,92062.0,92039.0,0.09778]
[1768297382730,0.010873,92062.0,92040.0,0.09788]
[1768297382926,0.00189139,92079.0,92008.0,1.2e-07]
[1768297382927,0.21629743,92050.0,92008.0,1.2e-07]
[1768297383128,0.1084,92048.0,92008.0,0.09591951]
[1768297383335,0.02875675,92047.0,92010.0,0.19343407]
[1768297383628,0.02875673,92046.0,92011.0,0.19379939]
[1768297383835,0.010876,92030.0,92011.0,0.09591939]
[1768297384028,0.08277295,92047.0,92012.0,0.09788]
[1768297384235,0.02875788,92046.0,92016.0,0.09591939]
[1768297384437,0.02875788,92045.0,92016.0,0.09591939]
[1768297384623,0.08277295,92057.0,92016.0,0.09591939]
[1768297384822,0.02874831,92056.0,92018.0,0.0976023]
[1768297385022,0.02874831,92055.0,92018.0,0.0976023]
[1768297385224,0.010874,92047.0,92018.0,0.0896023]
[1768297385629,0.010874,92047.0,92018.0,0.1004803]
[1768297385835,0.08277295,92057.0,92018.0,0.10305639]
[1768297386029,0.02874685,92056.0,92018.0,0.10305639]
[1768297386339,0.010875,92046.0,92018.0,0.10305639]
[1768297386630,0.010873,92055.0,92025.0,0.09217839]
[1768297386830,0.010873,92059.0,92034.0,0.09217839]
[1768297387138,0.010873,92059.0,92017.0,0.09788]
[1768297387139,0.010872,92071.0,92041.0,0.09217839]
[1768297387429,0.09213168,92082.0,92049.0,0.0976023]
[1768297387733,0.010871,92079.0,92052.0,0.09217839]
[1768297387937,0.01087,92083.0,92056.0,0.0976023]
[1768297388330,0.01087,92087.0,92060.0,0.0976023]
[1768297388529,0.01087,92087.0,92061.0,0.09217839]
[1768297388832,0.010869,92095.0,92063.0,0.1084743]
[1768297389032,0.09213168,92103.0,92062.0,0.09217839]
[1768297389033,0.09213168,92103.0,92069.0,0.0976023]
[1768297389427,0.09213168,92103.0,92068.0,0.09217839]
[1768297389428,0.010869,92096.0,92071.0,0.0976023]
[1768297389832,0.010869,92096.0,92073.0,0.0976023]
[1768297390031,0.09213168,92113.0,92075.0,0.0976023]
[1768297390232,0.09213168,92113.0,92074.0,0.09217839]
[1768297390233,0.09213168,92113.0,92077.0,0.0976023]
[1768297390437,0.09213168,92113.0,92079.0,0.0976023]
[1768297390845,0.09213168,92113.0,92078.0,0.09788]
[1768297390846,0.09213168,92113.0,92081.0,0.0976023]
[1768297391140,0.010867,92110.0,92085.0,0.0976023]
[1768297391535,0.010867,92110.0,92087.0,0.0976023]
[1768297391840,0.010867,92110.0,92088.0,0.0976023]
[1768297392142,0.09788,92123.0,92090.0,0.09217839]
[1768297392326,0.09788,92123.0,92092.0,0.0976023]
[1768297392527,0.010866,92117.0,92094.0,0.18978069]
[1768297392730,0.010866,92117.0,92095.0,0.0976023]
[1768297392934,0.09788,92132.0,92097.0,0.09217839]
[1768297393129,0.010866,92122.0,92097.0,0.09217839]
[1768297393442,0.010866,92122.0,92099.0,0.09217839]
[1768297393642,0.010865,92126.0,92099.0,0.09217839]
[1768297393839,0.010865,92126.0,92101.0,0.09217839]
[1768297394044,0.010865,92126.0,92100.0,0.10864]
[1768297394045,0.010864,92137.0,92112.0,0.09217839]
[1768297394250,0.010864,92137.0,92113.0,0.09788]
[1768297394539,0.010864,92137.0,92112.0,0.09217839]
[1768297394742,0.010864,92137.0,92115.0,0.00016287]
[1768297395044,0.010863,92142.0,92115.0,0.09583507]
[1768297395446,0.010864,92138.0,92115.0,0.09583507]
[1768297395742,0.010863,92143.0,92115.0,0.09583507]
[1768297396042,0.010863,92143.0,92117.0,0.0956722]
[1768297396342,0.010863,92143.0,92120.0,0.0956722]
[1768297396544,0.010863,92143.0,92121.0,0.0956722]
[1768297396845,0.010863,92143.0,92122.0,0.09784]
[1768297397140,0.010863,92143.0,92123.0,0.0956722]
[1768297397642,0.010863,92143.0,92124.0,0.09784]
[1768297397842,0.010863,92143.0,92124.0,0.1935122]
[1768297398844,0.010863,92143.0,92125.0,0.0956722]
[1768297399046,0.010863,92143.0,92126.0,0.09784]
[1768297399246,0.010863,92143.0,92126.0,0.1935122]
[1768297399542,0.010862,92154.0,92132.0,0.19559503]
[1768297399746,0.010862,92154.0,92134.0,0.19559503]
[1768297399947,0.010861,92159.0,92136.0,0.0956722]
[1768297400244,0.010861,92164.0,92139.0,0.0956722]
[1768297400445,0.010861,92160.0,92141.0,0.0956722]
[1768297400642,0.010861,92160.0,92141.0,0.0736722]
[1768297401448,0.010861,92160.0,92142.0,0.09992283]
[1768297401648,0.09784,92182.0,92142.0,0.09992283]
[1768297401838,0.010859,92174.0,92148.0,0.09992283]
[1768297402040,0.010859,92179.0,92152.0,0.09992283]
[1768297402244,0.010859,92179.0,92153.0,0.09784]
[1768297402646,0.010859,92175.0,92154.0,0.0956722]
[1768297402848,0.09055293,92189.0,92159.0,0.0956722]
[1768297403043,0.09055293,92185.0,92153.0,0.09784]
[1768297403351,0.09055293,92185.0,92153.0,0.1935122]
[1768297403541,0.010859,92174.0,92154.0,0.0956722]
[1768297404350,0.09784,92190.0,92158.0,0.0956722]
[1768297404537,0.01086,92173.0,92158.0,0.0956722]
[1768297405850,0.1803,92219.0,92153.0,0.09784]
[1768297405851,0.00542273,92205.0,92161.0,0.09992283]
[1768297406148,0.0978,92200.0,92166.0,0.0956722]
[1768297406347,0.010858,92186.0,92167.0,0.29339503]
[1768297406653,0.202,92203.0,92174.0,0.19559503]
[1768297406856,0.20742273,92205.0,92176.0,0.0956722]
[1768297407045,0.02872192,92204.0,92176.0,0.0956722]
[1768297407245,0.20742273,92205.0,92176.0,0.0956722]
[1768297407749,0.010856,92199.0,92180.0,0.19559503]
[1768297407949,0.010856,92199.0,92181.0,0.1934722]
[1768297408345,0.010856,92199.0,92182.0,0.0866722]
[1768297409147,0.00542273,92205.0,92182.0,0.0866722]
[1768297409349,0.01627873,92205.0,92183.0,0.09992283]
[1768297409543,0.00542273,92205.0,92187.0,0.09992283]
[1768297409953,0.010856,92201.0,92181.0,0.0978]
[1768297410141,0.010856,92201.0,92182.0,0.09992283]
[1768297410342,0.010856,92202.0,92183.0,0.0956722]
[1768297410648,0.09597566,92205.0,92172.0,0.0956722]
[1768297410847,0.09055293,92202.0,92173.0,0.0978]
[1768297411352,0.09055293,92202.0,92177.0,0.0956722]
[1768297411542,0.00542273,92205.0,92178.0,0.0956722]
[1768297412144,0.010857,92191.0,92178.0,0.0956722]
[1768297412339,0.09055293,92202.0,92177.0,3e-08]
[1768297412543,0.010859,92180.0,92170.0,0.0978]
[1768297412753,0.010859,92180.0,92159.0,0.010861]
[1768297413050,0.010859,92180.0,92160.0,0.09776]
[1768297413555,0.010858,92184.0,92161.0,0.010861]
[1768297413744,0.010858,92184.0,92162.0,0.09776]
[1768297414255,0.010859,92181.0,92162.0,0.09776]
[1768297414754,0.010859,92181.0,92162.0,0.19768283]
[1768297415151,0.10458877,92192.0,92160.0,0.0956722]
[1768297415346,0.10458877,92192.0,92126.0,0.010865]
[1768297415347,0.010859,92174.0,92158.0,0.09776]
[1768297415740,0.010859,92174.0,92158.0,0.19768266]
[1768297416150,0.010859,92174.0,92158.0,0.18768266]
[1768297416352,0.010859,92178.0,92158.0,0.18768266]
[1768297416845,0.108619,92179.0,92159.0,0.09992266]
[1768297417346,0.02885046,92178.0,92159.0,0.09992266]
[1768297417542,0.108619,92179.0,92159.0,0.09992266]
[1768297417744,0.09776,92179.0,92159.0,0.09992266]
[1768297417948,0.01086,92173.0,92154.0,0.0977041]
[1768297418950,0.01086,92169.0,92150.0,0.010862]
[1768297419862,0.09623328,92178.0,92150.0,0.19762676]
[1768297420159,0.01086,92170.0,92152.0,0.19762676]
[1768297420350,0.01086,92168.0,92152.0,0.19762676]
[1768297420550,0.02890563,92167.0,92152.0,0.19762676]
[1768297421159,0.09776,92171.0,92153.0,0.010862]
[1768297421558,0.09776,92171.0,92153.0,0.20848876]
[1768297421754,0.01086,92173.0,92154.0,0.19762676]
[1768297422059,0.09776,92172.0,92154.0,0.19762676]
[1768297422251,0.01086,92169.0,92154.0,0.19762676]
[1768297425162,0.01086,92169.0,92154.0,0.18462676]
[1768297425361,0.09776,92171.0,92137.0,0.0977041]
[1768297425754,0.01086,92165.0,92147.0,0.0977041]
[1768297425952,0.010859,92177.0,92159.0,0.0977041]
[1768297426148,0.010857,92195.0,92147.0,0.09776]
[1768297426149,0.09623328,92195.0,92161.0,0.0977041]
[1768297426353,0.010858,92190.0,92162.0,0.0977041]
[1768297426553,0.010858,92188.0,92165.0,0.0977041]
[1768297427259,0.010858,92188.0,92167.0,0.0977041]
[1768297427454,0.010858,92188.0,92169.0,0.01086]
[1768297428456,0.010858,92188.0,92168.0,0.09992266]
[1768297428457,0.010858,92186.0,92168.0,0.11078266]
[1768297428766,0.09776,92190.0,92171.0,0.01086]
[1768297428964,0.09776,92190.0,92168.0,0.19762676]
[1768297429156,0.010858,92187.0,92170.0,0.19762676]
[1768297430756,0.108618,92190.0,92170.0,0.20848676]
[1768297430958,0.010858,92190.0,92171.0,0.0977041]
[1768297431153,0.09776,92191.0,92171.0,0.0977041]
[1768297431357,0.010858,92187.0,92172.0,0.0977041]
[1768297431664,0.09776,92191.0,92175.0,0.19762676]
[1768297431862,0.09623328,92201.0,92177.0,0.0977041]
[1768297432063,0.09623328,92201.0,92170.0,0.01086]
[1768297432064,0.010857,92195.0,92179.0,0.19762676]
[1768297432264,0.010857,92195.0,92180.0,0.19762676]
[1768297432466,0.010857,92195.0,92180.0,0.13894727]
[1768297432666,0.108617,92195.0,92180.0,0.13094727]
[1768297432870,0.09776,92195.0,92180.0,0.13094727]
[1768297433067,0.02874262,92194.0,92180.0,0.13094727]
[1768297433370,0.02874262,92193.0,92180.0,0.13094727]
[1768297433571,0.02874262,92192.0,92180.0,0.13094727]
[1768297433769,0.02874262,92191.0,92180.0,0.13094727]
[1768297434066,0.00542273,92205.0,92181.0,0.09992266]
[1768297434265,0.09776,92204.0,92181.0,0.09992266]
[1768297434656,0.00542273,92205.0,92181.0,0.19762676]
[1768297434657,0.09776,92203.0,92181.0,0.19762676]
[1768297434863,0.18996505,92200.0,92178.0,0.0023867]
[1768297435065,0.09623328,92198.0,92178.0,0.0023867]
[1768297435672,0.010858,92183.0,92178.0,7e-07]
[1768297435868,0.010858,92183.0,92171.0,0.09992266]
[1768297436475,0.09776,92192.0,92162.0,0.09992266]
[1768297436775,0.010859,92178.0,92163.0,0.0977041]
[1768297437072,0.010858,92182.0,92164.0,0.19762676]
[1768297437372,0.09776,92186.0,92169.0,0.09992266]
[1768297437972,0.010857,92193.0,92169.0,0.09992266]
[1768297438172,0.09776,92192.0,92169.0,0.09992266]
[1768297438374,0.010859,92179.0,92162.0,0.09776]
[1768297438572,0.010858,92182.0,92164.0,0.19762676]
[1768297438974,0.108618,92186.0,92166.0,0.09992266]
[1768297439273,0.108618,92186.0,92167.0,0.09992266]
[1768297439673,0.108618,92186.0,92162.0,0.108621]
[1768297439674,0.010858,92186.0,92169.0,0.09992266]
[1768297439884,0.09776,92187.0,92169.0,0.09992266]
[1768297440367,0.09776,92187.0,92169.0,0.08692266]
[1768297440976,0.010859,92180.0,92169.0,0.08692266]
[1768297441166,0.14715129,92180.0,92162.0,0.09776]
[1768297441363,0.14715129,92172.0,92139.0,0.0977041]
[1768297441568,0.14715129,92160.0,92147.0,0.010863]
[1768297441778,0.01086,92168.0,92147.0,0.010863]
[1768297441970,0.010862,92155.0,92148.0,4.8e-07]
[1768297442162,0.14715129,92150.0,92133.0,0.0977041]
[1768297442363,0.14715129,92150.0,92131.0,0.108624]
[1768297442670,0.14715129,92150.0,92137.0,0.010864]
[1768297442869,0.14476537,92150.0,92137.0,0.010864]
[1768297443072,0.14476537,92150.0,92129.0,0.09992266]
[1768297443267,0.14476537,92150.0,92130.0,0.0977041]
[1768297443474,0.14476537,92150.0,92131.0,0.09992266]
[1768297443668,0.09623328,92159.0,92137.0,0.010864]
[1768297443863,0.14715129,92150.0,92137.0,0.010864]
[1768297444671,0.14715129,92150.0,92133.0,0.19762676]
[1768297445571,0.010861,92157.0,92133.0,0.19762676]
[1768297445784,0.09776,92156.0,92133.0,0.19762676]
[1768297446473,0.09776,92156.0,92137.0,0.010864]
[1768297447278,0.09776,92155.0,92138.0,0.09004522]
[1768297448170,0.14715129,92160.0,92138.0,0.18159852]
[1768297448368,0.09776,92159.0,92141.0,0.0915533]
[1768297449465,0.09776,92159.0,92140.0,0.10090822]
[1768297450474,0.15801229,92160.0,92140.0,0.09004522]
[1768297450669,0.09776,92158.0,92140.0,0.09004522]
[1768297451480,0.09776,92162.0,92149.0,0.010862]
[1768297451676,0.09776,92164.0,92146.0,0.18159852]
[1768297451979,0.09776,92164.0,92147.0,0.010862]
[1768297452478,0.10770903,92173.0,92148.0,0.18159852]
[1768297452679,0.02800564,92172.0,92158.0,0.18159852]
[1768297452873,0.010859,92178.0,92158.0,0.18159852]
[1768297452874,0.09776,92175.0,92158.0,0.18159852]
[1768297453382,0.02800677,92174.0,92158.0,0.18159852]
[1768297453681,0.02800677,92173.0,92158.0,0.18159852]
[1768297453880,0.14715129,92180.0,92161.0,0.010861]
[1768297454075,0.24491129,92180.0,92161.0,0.010861]
[1768297454574,0.010858,92182.0,92161.0,0.010861]
[1768297454770,0.09776,92183.0,92164.0,0.010861]
[1768297454985,0.108618,92183.0,92162.0,0.09595148]
[1768297455282,0.14715129,92180.0,92162.0,0.09595148]
[1768297455487,0.09776,92182.0,92162.0,0.09595148]
[1768297455785,0.010859,92181.0,92162.0,0.09595148]
[1768297456586,0.010858,92185.0,92163.0,0.19455155]
[1768297456888,0.14715129,92190.0,92169.0,0.19455155]
[1768297456889,0.010858,92190.0,92169.0,0.19455155]
[1768297457191,0.15800929,92190.0,92169.0,0.19455155]
[1768297457773,0.09776,92189.0,92173.0,0.19455155]
[1768297457985,0.09776,92188.0,92173.0,0.16255155]
[1768297458478,0.09776,92188.0,92163.0,0.09860007]
[1768297459086,0.09537563,92188.0,92163.0,0.09860007]
[1768297459489,0.010858,92183.0,92163.0,0.09860007]
[1768297460191,0.010858,92183.0,92165.0,0.09860007]
[1768297461488,0.010858,92183.0,92165.0,0.09595148]
[1768297463289,0.09416486,92198.0,92165.0,0.09595148]
[1768297463485,0.00542273,92205.0,92176.0,0.09860007]
[1768297463691,0.09776,92204.0,92178.0,0.09860007]
[1768297463987,0.09776,92203.0,92180.0,0.09860007]
[1768297464176,0.010856,92200.0,92182.0,0.19455155]
[1768297464383,0.010856,92200.0,92175.0,0.010859]
[1768297464384,0.09776,92199.0,92186.0,0.09860007]
[1768297464582,0.010857,92198.0,92186.0,0.09860007]
[1768297464889,0.108617,92198.0,92180.0,0.09860007]
[1768297466679,0.010857,92198.0,92180.0,0.09860007]
[1768297467387,0.010856,92203.0,92182.0,0.09860007]
[1768297467585,0.09776,92202.0,92186.0,0.09860007]
[1768297468187,0.00542273,92205.0,92186.0,0.09860007]
[1768297468188,0.00542273,92205.0,92186.0,0.10945807]
[1768297468377,0.09776,92210.0,92193.0,0.09860007]
[1768297468580,0.10501986,92214.0,92192.0,0.010857]
[1768297468782,0.09776,92217.0,92188.0,0.09860007]
[1768297468783,0.010855,92209.0,92188.0,0.09860007]
[1768297469191,0.010856,92206.0,92188.0,0.09860007]
[1768297469590,0.010856,92206.0,92188.0,0.09317381]
[1768297471389,0.09875651,92219.0,92187.0,0.20456948]
[1768297471390,0.010855,92210.0,92189.0,0.10680948]
[1768297471585,0.108615,92210.0,92189.0,0.20540955]
[1768297473193,0.010856,92207.0,92189.0,0.19455155]
[1768297473689,0.09416486,92215.0,92190.0,0.09860007]
[1768297473882,0.010855,92213.0,92193.0,0.10945707]
[1768297474193,0.09772,92212.0,92196.0,0.09860007]
[1768297474395,0.010855,92211.0,92189.0,0.10945807]
[1768297474692,0.010855,92211.0,92190.0,0.09411958]
[1768297475683,0.010855,92208.0,92190.0,0.09411958]
[1768297476385,0.010856,92206.0,92187.0,0.09776]
[1768297476580,0.010855,92210.0,92187.0,0.09776]
[1768297476888,0.010856,92205.0,92187.0,0.19187958]
[1768297477090,0.010855,92209.0,92188.0,0.09411958]
[1768297477684,0.00543345,92209.0,92188.0,0.18760266]
[1768297477881,0.010856,92206.0,92189.0,0.09411958]
[1768297478284,0.09647636,92227.0,92195.0,0.18760266]
[1768297478488,0.09647636,92215.0,92193.0,0.09411958]
[1768297478686,0.010855,92213.0,92193.0,0.09411958]
[1768297479086,0.010854,92216.0,92195.0,0.09411958]
[1768297479694,0.010855,92214.0,92195.0,0.09411958]
[1768297480396,0.010854,92218.0,92196.0,0.19845966]
[1768297480599,0.010854,92218.0,92198.0,0.18760266]
[1768297480798,0.010855,92214.0,92198.0,0.18760266]
[1768297481391,0.010855,92209.0,92197.0,0.09772]
[1768297481899,0.010856,92207.0,92197.0,0.09772]
[1768297482708,0.010855,92210.0,92197.0,0.09772]
[1768297483401,0.010855,92208.0,92197.0,0.09772]
[1768297485101,0.010855,92211.0,92197.0,0.09772]
[1768297485402,0.010855,92209.0,92197.0,0.09772]
[1768297485801,0.00543462,92209.0,92197.0,0.08772]
[1768297489498,0.010855,92212.0,92197.0,0.08772]
[1768297489703,0.09647636,92214.0,92197.0,0.08772]
[1768297489904,0.02797863,92213.0,92197.0,0.08772]
[1768297490104,0.09647636,92214.0,92197.0,0.08772]
[1768297490409,0.02798382,92213.0,92197.0,0.08772]
[1768297490599,0.09647636,92214.0,92197.0,0.08772]
[1768297490795,0.0279836,92213.0,92197.0,0.08772]
[1768297491000,0.010855,92211.0,92197.0,0.08772]
[1768297491508,0.010855,92209.0,92197.0,0.08772]
[1768297492312,0.010855,92212.0,92197.0,0.08772]
[1768297492610,0.010855,92210.0,92197.0,0.08772]
[1768297493404,0.010855,92210.0,92197.0,0.08372]
[1768297493806,0.0054358,92210.0,92197.0,0.08372]
[1768297494519,0.010855,92213.0,92197.0,0.08372]
[1768297494704,0.0280144,92212.0,92198.0,0.10497658]
[1768297494908,0.0280144,92211.0,92200.0,0.10497558]
[1768297495109,0.02803671,92210.0,92200.0,0.10497558]
[1768297495418,0.010854,92217.0,92201.0,0.09411958]
[1768297495716,0.09647636,92234.0,92210.0,0.09411958]
[1768297495921,0.13069718,92220.0,92207.0,0.09772]
[1768297497710,0.09647636,92229.0,92210.0,0.13069718]
[1768297498011,0.13069718,92220.0,92207.0,0.19120308]
[1768297498211,0.010854,92216.0,92207.0,0.09772]
[1768297498921,0.09647636,92225.0,92203.0,0.09411958]
[1768297499112,0.13069718,92213.0,92198.0,0.09772]
[1768297499418,0.13069718,92210.0,92198.0,0.09772]
[1768297499614,0.13069718,92210.0,92194.0,0.09411958]
[1768297499919,0.010855,92209.0,92195.0,0.19183958]
[1768297500106,0.13069718,92210.0,92195.0,0.19183958]
[1768297500609,0.13069718,92210.0,92189.0,0.19183958]
[1768297500610,0.010856,92205.0,92189.0,0.19183958]
[1768297501515,0.18997933,92227.0,92199.0,0.18760266]
[1768297501716,0.09647636,92234.0,92206.0,0.09348308]
[1768297501922,0.00543497,92231.0,92209.0,0.09411958]
[1768297502311,0.00543497,92231.0,92208.0,0.10433808]
[1768297502312,0.00543497,92231.0,92211.0,0.09411958]
[1768297502511,0.00543497,92231.0,92213.0,0.09411958]
[1768297502721,0.00543497,92231.0,92214.0,0.09348308]
[1768297503019,0.010852,92237.0,92220.0,0.09348308]
[1768297503225,0.010852,92237.0,92221.0,0.09411958]
[1768297503419,0.10010515,92238.0,92222.0,0.09348308]
[1768297503918,0.010852,92234.0,92222.0,0.09348308]
[1768297504118,0.11095715,92238.0,92222.0,0.09348308]
[1768297504727,0.09052026,92237.0,92208.0,0.18676336]
[1768297504916,0.010856,92207.0,92190.0,0.09602324]
[1768297505122,0.010857,92195.0,92179.0,0.09602324]
[1768297505320,0.010856,92199.0,92179.0,0.18676336]
[1768297505519,0.09772,92204.0,92181.0,0.18676336]
[1768297506428,0.010856,92203.0,92182.0,0.09602324]
[1768297506620,0.010856,92203.0,92182.0,0.18676336]
[1768297506926,0.09772,92204.0,92184.0,0.09602324]
[1768297507509,0.09772,92204.0,92185.0,0.010858]
[1768297507710,0.02547426,92203.0,92185.0,0.010858]
[1768297507927,0.108576,92204.0,92184.0,0.09602324]
[1768297508115,0.010856,92201.0,92184.0,0.09602324]
[1768297509625,0.18824026,92204.0,92178.0,0.09840994]
[1768297509820,0.010856,92202.0,92178.0,0.18915006]
[1768297510018,0.010856,92202.0,92179.0,0.18676336]
[1768297510218,0.010856,92202.0,92180.0,0.09602324]
[1768297510724,0.010856,92202.0,92180.0,0.18676336]
[1768297511113,0.09772,92204.0,92183.0,0.09602324]
[1768297511314,0.202,92242.0,92201.0,0.18676336]
[1768297511315,0.010854,92221.0,92201.0,0.18676336]
[1768297511520,0.09772,92220.0,92201.0,0.18676336]
[1768297512129,0.010854,92221.0,92201.0,0.18676336]
[1768297512331,0.010854,92219.0,92201.0,0.09074012]
[1768297512530,0.010854,92216.0,92196.0,0.010857]
[1768297512829,0.09772,92215.0,92196.0,0.010857]
[1768297513224,0.09052026,92219.0,92196.0,0.010857]
[1768297513430,0.09772,92218.0,92196.0,0.010857]
[1768297513632,0.09772,92217.0,92196.0,0.010857]
[1768297514923,0.09772,92216.0,92196.0,0.010857]
[1768297515129,0.010855,92215.0,92194.0,0.09602324]
[1768297515324,0.010855,92215.0,92195.0,0.010857]
[1768297515923,0.09772,92216.0,92197.0,0.010857]
[1768297516626,0.09772,92216.0,92194.0,0.09602324]
[1768297516834,0.010853,92227.0,92206.0,0.10939341]
[1768297517017,0.09772,92226.0,92206.0,0.010856]
[1768297517223,0.10660539,92225.0,92203.0,0.010856]
[1768297518134,0.10118854,92225.0,92203.0,0.010856]
[1768297518933,0.010854,92223.0,92203.0,0.010856]